bitfinex-derivatives/quotes_SOLF0:USTF0_20250404
["timestamp","ask_amount","ask_price","bid_price","bid_amount"]
[1743793095249,8.2146,121.78,121.77,0.15752664]
[1743793095651,16.97215477,121.78,121.76,0.08294281]
[1743793095850,8.2153,121.77,121.76,0.08294281]
[1743793097257,8.2159,121.76,121.75,0.10468267]
[1743793098360,25.18805477,121.76,121.75,0.10468267]
[1743793099661,8.2159,121.76,121.75,0.10468267]
[1743793103156,8.2166,121.75,121.74,0.10108129]
[1743793105357,12.7242,121.75,121.74,0.10108129]
[1743793106358,16.97215477,121.74,121.72,0.09492739]
[1743793106559,50.35215477,121.74,121.72,0.09492739]
[1743793106863,8.218,121.73,121.72,0.09492739]
[1743793107162,50.40876406,121.74,121.71,0.13310188]
[1743793107361,25.19075477,121.72,121.71,0.13310188]
[1743793108961,8.2193,121.71,121.7,0.14619426]
[1743793109668,8.22,121.7,121.69,0.1412723]
[1743793110565,25.19215477,121.7,121.69,0.1412723]
[1743793110862,8.2207,121.69,121.68,0.14697707]
[1743793111066,16.97215477,121.7,121.67,0.11078529]
[1743793111458,8.2214,121.68,121.67,0.11078529]
[1743793112668,0.05216015,121.71,121.67,41.73078529]
[1743793112870,0.05216015,121.71,121.68,4.1778]
[1743793113167,8.27156015,121.71,121.68,4.1778]
[1743793113571,0.05216015,121.71,121.68,4.1778]
[1743793113870,0.05216015,121.71,121.68,12.3991]
[1743793114167,0.05216015,121.71,121.68,12.3989]
[1743793115069,0.05216015,121.71,121.69,8.2203]
[1743793115259,0.05216015,121.71,121.7,33.4]
[1743793115460,21.30855477,121.76,121.7,33.4]
[1743793116372,8.2193,121.71,121.7,33.4]
[1743793119670,8.2193,121.71,121.69,0.05216015]
[1743793120059,8.27454295,121.71,121.69,0.05216015]
[1743793121471,0.05524295,121.71,121.69,0.05216015]
[1743793122571,8.22,121.7,121.69,0.05216015]
[1743793125673,8.27494295,121.71,121.69,0.05216015]
[1743793125975,0.05524295,121.71,121.69,41.65256015]
[1743793126378,8.27464295,121.71,121.69,33.43216015]
[1743793126569,0.05524295,121.71,121.69,33.43216015]
[1743793126973,8.22,121.7,121.69,33.43216015]
[1743793128577,8.22,121.7,121.69,0.05216015]
[1743793129280,8.27504295,121.71,121.69,8.27286015]
[1743793129473,0.05524295,121.71,121.69,0.05216015]
[1743793130368,8.22,121.7,121.69,0.05216015]
[1743793131667,19.11688688,121.7,121.69,0.05216015]
[1743793141682,8.2214,121.68,121.67,0.11078529]
[1743793141882,10.89688688,121.68,121.66,0.1252617]
[1743793142277,8.222,121.67,121.66,0.1252617]
[1743793143579,8.2227,121.66,121.65,0.17031202]
[1743793143781,19.11958688,121.66,121.65,0.17031202]
[1743793145283,10.89688688,121.66,121.63,0.16327601]
[1743793145481,10.89688688,121.64,121.63,0.16327601]
[1743793145677,19.12098688,121.64,121.63,0.16327601]
[1743793147287,10.89688688,121.64,121.63,0.16327601]
[1743793147581,0.05348433,121.65,121.63,0.16327601]
[1743793147782,0.05348433,121.65,121.64,8.2241]
[1743793148287,10.89688688,121.68,121.66,8.2225]
[1743793149086,19.11858688,121.68,121.65,8.223]
[1743793149482,19.17743651,121.68,121.65,8.2761344]
[1743793149682,0.05884963,121.68,121.66,41.5824]
[1743793149986,0.05884963,121.68,121.66,33.36]
[1743793150286,0.05884963,121.68,121.66,41.5823]
[1743793150886,0.05884963,121.68,121.66,33.36]
[1743793151074,0.05884963,121.68,121.67,8.222]
[1743793151273,0.05884963,121.68,121.65,33.4131344]
[1743793151876,8.2222,121.67,121.65,41.6365344]
[1743793152178,8.2222,121.67,121.65,33.4131344]
[1743793152985,8.28064963,121.68,121.65,41.6362344]
[1743793153482,0.05884963,121.68,121.66,8.2224]
[1743793153688,0.05884963,121.68,121.65,33.4131344]
[1743793153984,8.28054963,121.68,121.65,41.6360344]
[1743793154285,0.05884963,121.68,121.65,33.4131344]
[1743793154481,0.05884963,121.68,121.65,0.0531344]
[1743793155679,0.05884963,121.68,121.66,8.2223]
[1743793156286,8.28034963,121.68,121.65,12.5276344]
[1743793156583,0.05884963,121.68,121.65,4.3045344]
[1743793156975,0.05884963,121.68,121.66,8.2224]
[1743793157884,0.05884963,121.68,121.67,8.222]
[1743793158085,317.55257764,121.73,121.67,33.34]
[1743793158481,8.2203,121.7,121.67,41.5616]
[1743793158679,317.55257764,121.73,121.67,33.34]
[1743793159179,0.05776974,121.71,121.69,8.2728823]
[1743793159385,0.05776974,121.71,121.69,0.0525823]
[1743793160181,8.27756974,121.71,121.69,0.0525823]
[1743793160782,8.22,121.7,121.69,0.0525823]
[1743793162188,0.05776974,121.71,121.69,0.0525823]
[1743793162882,8.22,121.7,121.69,0.0525823]
[1743793164584,8.27746974,121.71,121.69,0.0525823]
[1743793165691,0.05776974,121.71,121.69,8.2730823]
[1743793165892,0.05776974,121.71,121.7,33.32]
[1743793166794,0.05776974,121.71,121.7,41.54]
[1743793167385,0.05776974,121.71,121.7,33.32]
[1743793167890,8.27706974,121.71,121.7,33.32]
[1743793168090,8.27706974,121.71,121.69,0.0525823]
[1743793168685,8.22,121.7,121.69,0.0525823]
[1743793169196,8.27746974,121.71,121.69,0.0525823]
[1743793169384,0.05776974,121.71,121.69,0.0525823]
[1743793169879,19.11659451,121.7,121.69,0.0525823]
[1743793172488,8.22,121.7,121.69,0.0525823]
[1743793172689,19.11659451,121.7,121.69,0.0525823]
[1743793172895,8.22,121.7,121.69,0.0525823]
[1743793173889,19.17416425,121.71,121.69,0.0525823]
[1743793174197,0.05776974,121.71,121.69,8.2729823]
[1743793174592,0.05776974,121.71,121.69,0.0525823]
[1743793175888,0.05776974,121.71,121.69,8.2729823]
[1743793176095,0.05776974,121.71,121.69,0.0525823]
[1743793177203,8.22,121.7,121.69,0.0525823]
[1743793179297,8.27746974,121.71,121.69,0.0525823]
[1743793179596,8.27746974,121.71,121.69,8.2727823]
[1743793179796,0.05776974,121.71,121.69,8.2727823]
[1743793179999,0.05776974,121.71,121.69,0.0525823]
[1743793180197,0.05776974,121.71,121.69,8.2728823]
[1743793180499,0.05776974,121.71,121.69,0.0525823]
[1743793180705,0.05776974,121.71,121.7,8.22]
[1743793180897,0.05776974,121.71,121.69,0.0525823]
[1743793181101,8.22,121.7,121.69,0.0525823]
[1743793186903,8.27726974,121.71,121.69,0.0525823]
[1743793187110,0.05776974,121.71,121.69,0.0525823]
[1743793187402,0.05776974,121.71,121.69,8.2726823]
[1743793187609,0.05776974,121.71,121.69,41.5726823]
[1743793188310,8.27716974,121.71,121.69,33.3525823]
[1743793190216,8.22,121.7,121.69,33.3525823]
[1743793190509,8.22,121.7,121.69,0.0525823]
[1743793191899,8.27736974,121.71,121.69,0.0525823]
[1743793192101,0.05776974,121.71,121.69,0.0525823]
[1743793192299,0.05776974,121.71,121.69,33.3325823]
[1743793193216,0.05776974,121.71,121.69,41.5528823]
[1743793193412,0.05776974,121.71,121.69,33.3325823]
[1743793194094,304.1369,121.75,121.69,33.3325823]
[1743793194294,9.1443,121.76,121.69,33.3325823]
[1743793195110,8.2181,121.73,121.7,8.2195]
[1743793195510,8.2181,121.73,121.7,8.27748098]
[1743793197611,8.27509017,121.74,121.71,8.2193]
[1743793198617,0.05739017,121.74,121.71,8.2192]
[1743793198918,0.05739017,121.74,121.72,33.28]
[1743793199111,8.27519017,121.74,121.72,33.28]
[1743793199309,0.05739017,121.74,121.72,33.28]
[1743793200005,8.218,121.73,121.72,33.28]
[1743793200220,0.05739017,121.74,121.72,33.28]
[1743793200420,8.218,121.73,121.72,33.28]
[1743793200621,0.05739017,121.74,121.72,33.28]
[1743793200812,8.2158,121.77,121.73,8.218]
[1743793201011,8.2158,121.77,121.72,33.28]
[1743793201315,52.64530888,121.81,121.75,17.01649171]
[1743793201515,44.43260888,121.81,121.76,33.26]
[1743793201717,44.43260888,121.81,121.77,8.2148]
[1743793201908,44.43260888,121.81,121.76,33.26]
[1743793202116,0.05699842,121.8,121.78,0.05682115]
[1743793202315,0.05699842,121.8,121.79,33.26]
[1743793202520,8.27029842,121.8,121.79,33.26]
[1743793202723,0.05699842,121.8,121.78,0.05682115]
[1743793202926,8.2139,121.79,121.78,0.05682115]
[1743793203317,17.01649171,121.79,121.72,363.0]
[1743793203626,8.2163,121.76,121.72,33.26]
[1743793203814,4.4449,121.78,121.72,33.26]
[1743793204014,8.218,121.73,121.72,33.26]
[1743793204628,8.26961612,121.74,121.72,33.26]
[1743793205027,0.05191612,121.74,121.71,0.05645286]
[1743793205233,8.2186,121.72,121.71,0.05645286]
[1743793207226,0.05191612,121.74,121.71,0.05645286]
[1743793207833,8.26951612,121.74,121.71,0.05645286]
[1743793208320,8.26951612,121.74,121.71,8.27545286]
[1743793208517,8.26951612,121.74,121.71,0.05645286]
[1743793208716,8.2181,121.73,121.71,0.05645286]
[1743793208933,0.05191612,121.74,121.71,0.05645286]
[1743793209934,0.05191612,121.74,121.71,8.27515286]
[1743793210328,8.26931612,121.74,121.71,8.27515286]
[1743793210527,8.26931612,121.74,121.71,0.05645286]
[1743793210828,0.05191612,121.74,121.71,0.05645286]
[1743793211033,8.218,121.73,121.71,0.05645286]
[1743793211426,0.05191612,121.74,121.71,8.27575286]
[1743793211730,8.26961612,121.74,121.71,0.05645286]
[1743793212028,8.2186,121.72,121.71,0.05645286]
[1743793212433,0.05191612,121.74,121.71,0.05645286]
[1743793213134,297.24989214,121.81,121.72,17.01649171]
[1743793213327,52.98230888,121.83,121.76,17.01649171]
[1743793213525,44.43260888,121.83,121.77,33.24]
[1743793214030,44.43260888,121.83,121.78,8.2145]
[1743793214232,0.05245769,121.81,121.79,0.06241784]
[1743793214920,0.05245769,121.81,121.8,33.24]
[1743793215120,44.43260888,121.83,121.8,33.24]
[1743793215433,44.43260888,121.83,121.8,50.25649171]
[1743793215726,81.00071776,121.84,121.82,17.01649171]
[1743793215930,81.00071776,121.84,121.83,33.24]
[1743793216139,222.1630444,121.86,121.83,33.24]
[1743793216328,222.1630444,121.86,121.85,25.22639171]
[1743793216533,129.59929612,121.86,121.85,25.22639171]
[1743793216733,129.59929612,121.86,121.85,33.42639171]
[1743793217029,129.59929612,121.86,121.85,17.01649171]
[1743793217229,129.59929612,121.86,121.85,25.21649171]
[1743793217732,0.06281069,121.86,121.85,25.21649171]
[1743793217924,0.06281069,121.86,121.83,423.38198514]
[1743793219135,0.06281069,121.86,121.83,431.59308514]
[1743793219434,0.06281069,121.86,121.83,423.38198514]
[1743793219639,0.06281069,121.86,121.83,363.0]
[1743793219826,0.06281069,121.86,121.82,0.05730209]
[1743793220027,8.2112,121.83,121.82,0.05730209]
[1743793224435,0.06281069,121.86,121.82,0.05730209]
[1743793224628,0.06281069,121.86,121.82,33.27730209]
[1743793225437,0.06281069,121.86,121.82,41.48890209]
[1743793225736,0.06281069,121.86,121.82,33.27730209]
[1743793225936,0.06281069,121.86,121.83,8.2108]
[1743793226131,0.06281069,121.86,121.82,33.27730209]
[1743793226636,0.06281069,121.86,121.79,33.22]
[1743793226937,355.94198514,121.87,121.79,33.22]
[1743793227536,8.2127,121.81,121.79,33.22]
[1743793227731,33.2,121.84,121.77,37.79534658]
[1743793227937,0.05712857,121.81,121.79,0.05912217]
[1743793228436,0.05712857,121.81,121.75,33.2]
[1743793229140,8.2143,121.79,121.76,8.2156]
[1743793229439,33.2,121.8,121.72,255.72669965]
[1743793229629,328.78,121.8,121.76,0.05496305]
[1743793229830,0.05625388,121.77,121.72,255.72669965]
[1743793230137,33.25625388,121.77,121.72,222.52669965]
[1743793230339,8.2177,121.74,121.72,222.52669965]
[1743793230537,8.9016,121.76,121.72,222.52669965]
[1743793231032,8.26939987,121.75,121.73,0.05340769]
[1743793231248,0.05239987,121.75,121.73,0.05340769]
[1743793233041,8.26959987,121.75,121.73,0.05340769]
[1743793233436,0.05239987,121.75,121.73,0.05340769]
[1743793233630,8.2173,121.74,121.73,0.05340769]
[1743793233837,8.2173,121.74,121.69,41.4204]
[1743793234033,0.05239987,121.75,121.69,33.2]
[1743793234230,8.218,121.73,121.69,41.4203]
[1743793234630,8.9016,121.76,121.69,33.2]
[1743793235030,0.05792724,121.74,121.71,0.05025153]
[1743793235535,0.05792724,121.74,121.71,8.26955153]
[1743793235842,0.05792724,121.74,121.71,0.05025153]
[1743793236036,0.05792724,121.74,121.67,371.2217]
[1743793236231,0.05792724,121.74,121.67,396.2]
[1743793236632,33.25792724,121.74,121.67,33.2]
[1743793236832,8.2204,121.7,121.67,8.2217]
[1743793237135,0.05224359,121.7,121.65,33.2]
[1743793237339,8.2211,121.69,121.66,8.2226]
[1743793237540,0.05224359,121.7,121.65,33.2]
[1743793238439,0.05224359,121.7,121.69,8.2207]
[1743793238635,0.05224359,121.7,121.68,33.22]
[1743793239844,8.2212,121.69,121.65,41.4233]
[1743793240042,8.2212,121.69,121.65,33.2]
[1743793240244,8.2215,121.68,121.63,0.16327601]
[1743793240541,8.2215,121.68,121.64,33.2]
[1743793240742,0.0577389,121.67,121.64,33.2]
[1743793240941,0.0577389,121.67,121.64,41.4239]
[1743793241140,0.0577389,121.67,121.64,33.2]
[1743793241344,8.2798389,121.67,121.64,33.2]
[1743793241541,0.0577389,121.67,121.64,33.2]
[1743793241745,0.0577389,121.67,121.63,41.60797601]
[1743793242448,8.223,121.66,121.63,41.60797601]
[1743793242751,0.0577389,121.67,121.63,41.60797601]
[1743793243148,8.2801389,121.67,121.63,41.60797601]
[1743793243447,0.0577389,121.67,121.63,41.60797601]
[1743793243745,0.0577389,121.67,121.63,8.38797601]
[1743793243746,8.2227,121.66,121.63,8.38797601]
[1743793244044,0.0577389,121.67,121.63,0.16327601]
[1743793244338,8.223,121.66,121.63,0.16327601]
[1743793244531,0.0577389,121.67,121.63,0.16327601]
[1743793245434,0.0577389,121.67,121.64,8.2239]
[1743793245729,0.0577389,121.67,121.63,0.16327601]
[1743793246241,0.0577389,121.67,121.64,8.2236]
[1743793247245,8.2798389,121.67,121.64,8.2236]
[1743793247745,0.0577389,121.67,121.64,8.2236]
[1743793247945,8.2797389,121.67,121.63,8.38767601]
[1743793248349,8.2228,121.66,121.63,8.38767601]
[1743793248538,8.2228,121.66,121.63,0.16327601]
[1743793249241,8.2228,121.66,121.63,8.38787601]
[1743793250047,8.2802389,121.67,121.64,8.224]
[1743793250254,0.0577389,121.67,121.63,0.16327601]
[1743793250648,8.223,121.66,121.63,0.16327601]
[1743793250846,0.0577389,121.67,121.63,0.16327601]
[1743793251147,4.5520389,121.67,121.63,0.16327601]
[1743793251448,8.2241,121.64,121.63,0.16327601]
[1743793251944,33.22,121.64,121.61,0.16134917]
[1743793252249,4.5414,121.63,121.6,0.18141797]
[1743793252451,4.5414,121.63,121.59,0.17306238]
[1743793254042,12.7662,121.63,121.59,0.17306238]
[1743793254243,4.5414,121.63,121.59,0.17306238]
[1743793254450,4.5414,121.63,121.6,8.2266]
[1743793254652,4.5414,121.63,121.59,0.17306238]
[1743793254951,12.7665,121.63,121.59,8.40016238]
[1743793255651,4.5414,121.63,121.6,8.2266]
[1743793255847,4.5414,121.63,121.59,0.17306238]
[1743793256240,0.05726862,121.64,121.59,0.17306238]
[1743793256553,0.05726862,121.64,121.62,8.225]
[1743793256846,0.05726862,121.64,121.63,33.22]
[1743793258254,8.28136862,121.64,121.63,33.22]
[1743793258555,0.05726862,121.64,121.63,33.22]
[1743793260046,0.05726862,121.64,121.63,41.4447]
[1743793260248,0.05726862,121.64,121.63,33.22]
[1743793261254,0.05726862,121.64,121.63,41.4447]
[1743793262051,0.05726862,121.64,121.63,33.22]
[1743793262441,0.05726862,121.64,121.63,41.4447]
[1743793265751,0.05726862,121.64,121.63,33.22]
[1743793266262,0.05726862,121.64,121.63,41.4447]
[1743793268956,0.05726862,121.64,121.63,33.22]
[1743793269666,0.05726862,121.64,121.63,41.4447]
[1743793270359,21.41492741,121.71,121.63,33.22]
[1743793270560,4.3812,121.71,121.63,50.25372741]
[1743793270766,8.2203,121.7,121.63,50.25372741]
[1743793270954,304.5607,121.73,121.65,17.03372741]
[1743793271152,304.5607,121.73,121.66,33.2]
[1743793271353,8.2203,121.7,121.67,8.2217]
[1743793271559,0.05961992,121.71,121.68,0.05382562]
[1743793272667,17.09334733,121.71,121.68,0.05382562]
[1743793274069,17.09334733,121.71,121.65,33.2]
[1743793274271,17.03372741,121.69,121.64,134.31769243]
[1743793274461,17.03372741,121.67,121.64,134.31769243]
[1743793274667,17.03372741,121.65,121.64,99.83799243]
[1743793274875,17.03372741,121.65,121.62,279.82852589]
[1743793275075,33.18,121.64,121.62,279.82852589]
[1743793275269,25.25842741,121.63,121.62,20.66328611]
[1743793275774,8.2247,121.63,121.62,20.66328611]
[1743793276581,8.2263,121.61,121.59,0.17306238]
[1743793276971,0.05308399,121.61,121.59,0.17306238]
[1743793277166,8.2268,121.6,121.59,0.17306238]
[1743793277968,109.39815036,121.6,121.59,0.17306238]
[1743793279984,8.2274,121.59,121.58,0.20393011]
[1743793280784,304.26,121.59,121.55,0.21095213]
[1743793281088,60.48477083,121.58,121.55,0.21095213]
[1743793281386,8.2308,121.54,121.53,1.799e-05]
[1743793281584,41.4308,121.54,121.53,1.799e-05]
[1743793282390,8.2315,121.53,121.52,7.17e-06]
[1743793282684,41.42,121.54,121.5,7.976e-05]
[1743793282891,8.2329,121.51,121.5,7.976e-05]
[1743793283074,337.5529,121.51,121.5,7.976e-05]
[1743793283281,337.56,121.51,121.49,3.728e-05]
[1743793283479,337.56,121.51,121.48,4.28e-05]
[1743793283778,329.32,121.51,121.48,4.28e-05]
[1743793283978,8.2342,121.49,121.48,4.28e-05]
[1743793284882,8.2339,121.5,121.48,4.28e-05]
[1743793285287,486.72329206,121.51,121.48,4.28e-05]
[1743793286391,40.23005332,121.5,121.48,4.28e-05]
[1743793286575,40.23005332,121.5,121.48,8.2345428]
[1743793286782,40.23005332,121.5,121.48,4.28e-05]
[1743793287089,40.23005332,121.5,121.48,8.2343428]
[1743793287291,26.42705332,121.5,121.47,33.2]
[1743793287590,122.84560245,121.51,121.47,33.2]
[1743793287789,122.84560245,121.51,121.5,8.2335]
[1743793287990,122.84560245,121.51,121.5,33.2]
[1743793288292,0.05316545,121.52,121.5,33.2]
[1743793289087,0.05316545,121.52,121.46,33.22]
[1743793289290,0.05316545,121.52,121.44,33.399118]
[1743793289591,66.72334612,121.54,121.44,33.399118]
[1743793289795,0.06157403,121.49,121.44,33.399118]
[1743793290091,0.06157403,121.49,121.46,8.2362]
[1743793290294,223.0334532,121.47,121.46,8.2362]
[1743793290681,223.0334532,121.47,121.44,33.22]
[1743793291187,223.0334532,121.47,121.46,8.2362]
[1743793291586,64.99442957,121.47,121.44,33.22]
[1743793291882,64.99442957,121.47,121.43,0.21213079]
[1743793292087,64.99442957,121.47,121.46,8.2362]
[1743793293297,0.05458005,121.48,121.47,8.2356]
[1743793295389,0.05458005,121.48,121.46,8.2359]
[1743793295779,0.05458005,121.48,121.44,35.86987083]
[1743793295990,0.05458005,121.48,121.47,8.2356]
[1743793296396,0.05458005,121.48,121.46,8.236]
[1743793296592,0.05458005,121.48,121.44,35.86987083]
[1743793297093,0.05458005,121.48,121.47,8.2356]
[1743793297891,0.05458005,121.48,121.46,0.3026585]
[1743793299986,33.27458005,121.48,121.46,0.3026585]
[1743793300187,8.2356,121.47,121.46,0.3026585]
[1743793300795,33.27458005,121.48,121.43,0.59852574]
[1743793301594,33.27458005,121.48,121.42,0.280045]
[1743793301799,27.28477083,121.46,121.41,0.2842585]
[1743793301994,8.239,121.42,121.41,0.2842585]
[1743793302190,33.22,121.42,121.39,0.26912258]
[1743793302597,8.2403,121.4,121.39,0.26912258]
[1743793303199,8.241,121.39,121.38,0.2985025]
[1743793303500,41.461,121.39,121.38,0.2985025]
[1743793306095,8.241,121.39,121.38,0.2985025]
[1743793307303,8.29362017,121.4,121.38,0.2985025]
[1743793307603,0.05302017,121.4,121.38,0.2985025]
[1743793307906,33.35598837,121.5,121.39,33.22]
[1743793308603,37.7691,121.49,121.39,33.22]
[1743793308802,37.7691,121.49,121.4,4.3614]
[1743793309110,8.29248042,121.46,121.43,8.29606458]
[1743793310509,8.2369,121.45,121.43,8.29606458]
[1743793310710,8.2369,121.45,121.43,0.05816458]
[1743793310905,0.05578042,121.46,121.43,0.05816458]
[1743793312009,8.29248042,121.46,121.43,0.05816458]
[1743793312202,8.29248042,121.46,121.43,8.29586458]
[1743793312702,0.05578042,121.46,121.43,0.05816458]
[1743793312911,0.05578042,121.46,121.44,8.2376]
[1743793313405,0.05578042,121.46,121.43,0.05816458]
[1743793313805,8.29238042,121.46,121.43,0.05816458]
[1743793314017,0.05578042,121.46,121.43,0.05816458]
[1743793314407,8.29238042,121.46,121.43,0.05816458]
[1743793314609,0.05578042,121.46,121.43,0.05816458]
[1743793314911,0.05578042,121.46,121.43,33.27816458]
[1743793315606,0.05578042,121.46,121.44,8.2376]
[1743793315811,0.05578042,121.46,121.43,33.27816458]
[1743793316333,33.35598837,121.5,121.43,33.27816458]
[1743793316611,33.35598837,121.5,121.46,8.2358]
[1743793316812,8.2346,121.49,121.46,8.2358]
[1743793317314,33.35598837,121.5,121.45,8.2366]
[1743793317514,8.2354,121.48,121.46,0.05845904]
[1743793317703,0.05341949,121.49,121.46,0.05845904]
[1743793317901,8.2356,121.47,121.46,0.05845904]
[1743793318705,8.2353,121.48,121.46,0.05845904]
[1743793318915,0.05341949,121.49,121.46,0.05845904]
[1743793319114,0.05341949,121.49,121.47,8.2355]
[1743793319812,8.28791949,121.49,121.46,41.51435904]
[1743793320117,0.05341949,121.49,121.46,33.27845904]
[1743793320414,296.5,121.52,121.46,33.27845904]
[1743793320610,296.5,121.52,121.47,4.5517]
[1743793320808,296.5,121.52,121.49,8.2338]
[1743793321010,296.5,121.52,121.47,4.5517]
[1743793321211,304.7326,121.52,121.47,4.5517]
[1743793321519,0.05491938,121.51,121.48,0.0573618]
[1743793321724,0.05491938,121.51,121.49,8.2339]
[1743793322015,0.05491938,121.51,121.49,33.22]
[1743793322215,0.05491938,121.51,121.5,8.2335]
[1743793322514,33.35598837,121.55,121.49,60.50477083]
[1743793322715,33.35598837,121.55,121.51,8.2325]
[1743793322919,33.35598837,121.55,121.52,33.22]
[1743793323521,89.01731802,121.56,121.53,4.2712]
[1743793324017,97.24711802,121.56,121.53,4.2712]
[1743793324211,97.24711802,121.56,121.52,33.28101311]
[1743793324721,0.06189553,121.55,121.52,33.28101311]
[1743793325915,0.06189553,121.55,121.53,8.2311]
[1743793326117,0.06189553,121.55,121.52,33.28101311]
[1743793327017,300.6725,121.62,121.52,68.78578394]
[1743793327214,300.6725,121.62,121.52,27.28477083]
[1743793327418,33.2,121.61,121.51,33.2]
[1743793328120,0.05858088,121.57,121.55,0.06150103]
[1743793330118,8.2295,121.56,121.55,0.06150103]
[1743793333116,8.2316,121.53,121.5,404.4132]
[1743793333321,8.7702,121.57,121.5,33.18]
[1743793333524,8.2291,121.57,121.5,60.46477083]
[1743793333721,33.18,121.6,121.5,60.46477083]
[1743793333917,37.3857,121.61,121.5,60.46477083]
[1743793334120,8.2279,121.59,121.5,423.46477083]
[1743793334316,5.17e-05,121.57,121.54,0.05550602]
[1743793334519,8.2246,121.64,121.55,33.18]
[1743793334717,4.2057,121.66,121.57,27.28477083]
[1743793334921,4.2057,121.66,121.58,33.18]
[1743793335320,4.2057,121.66,121.61,8.2255]
[1743793335514,4.2057,121.66,121.58,33.18]
[1743793335715,0.05731925,121.65,121.62,0.06214454]
[1743793336229,0.05731925,121.65,121.62,8.28724454]
[1743793336531,0.05731925,121.65,121.62,0.06214454]
[1743793338030,0.05731925,121.65,121.62,8.28704454]
[1743793338231,0.05731925,121.65,121.62,0.06214454]
[1743793339531,0.05731925,121.65,121.62,8.28724454]
[1743793339728,0.05731925,121.65,121.62,0.06214454]
[1743793339929,8.28131925,121.65,121.62,33.22214454]
[1743793340133,0.05731925,121.65,121.62,33.22214454]
[1743793341732,0.05731925,121.65,121.64,8.2241]
[1743793341933,0.05731925,121.65,121.62,0.06214454]
[1743793342435,27.28477083,121.76,121.63,60.44477083]
[1743793342639,12.642,121.72,121.64,8.9755]
[1743793342825,12.642,121.72,121.68,8.221]
[1743793343027,12.642,121.72,121.68,41.381]
[1743793343536,8.2194,121.71,121.68,33.16]
[1743793343729,8.2194,121.71,121.69,0.05736174]
[1743793343730,0.06228412,121.71,121.69,0.05736174]
[1743793344046,8.2211,121.69,121.66,33.16]
[1743793344224,8.2211,121.69,121.64,42.1355]
[1743793344421,8.2211,121.69,121.66,0.05812502]
[1743793344622,4.4231,121.72,121.66,0.05812502]
[1743793344823,0.0547661,121.69,121.66,0.05812502]
[1743793345025,0.0547661,121.69,121.67,33.16]
[1743793345735,0.0547661,121.69,121.68,8.2214]
[1743793347235,0.0547661,121.69,121.67,41.3819]
[1743793347630,0.0547661,121.69,121.67,33.16]
[1743793348340,0.0547661,121.69,121.67,41.3819]
[1743793348636,0.0547661,121.69,121.66,33.19812502]
[1743793348836,0.0547661,121.69,121.67,8.2216]
[1743793349634,0.0547661,121.69,121.66,41.42052502]
[1743793349936,0.0547661,121.69,121.66,0.05812502]
[1743793350428,0.0547661,121.69,121.67,33.14]
[1743793350835,0.0547661,121.69,121.68,8.2214]
[1743793351236,0.0547661,121.69,121.67,33.14]
[1743793352135,0.0547661,121.69,121.68,8.2214]
[1743793352330,0.0547661,121.69,121.67,33.14]
[1743793352532,0.0547661,121.69,121.66,0.05812502]
[1743793353740,0.0547661,121.69,121.67,8.2214]
[1743793355841,0.0547661,121.69,121.66,8.28042502]
[1743793356031,0.0547661,121.69,121.66,0.05812502]
[1743793356430,0.0547661,121.69,121.67,8.2217]
[1743793357341,0.0547661,121.69,121.66,0.05812502]
[1743793357732,33.14,121.68,121.6,41.8561]
[1743793358038,4.1796,121.67,121.6,41.8561]
[1743793358636,4.1796,121.67,121.62,8.225]
[1743793358840,0.05465872,121.65,121.62,8.28299961]
[1743793359137,0.05465872,121.65,121.63,8.2244]
[1743793359541,8.27805872,121.65,121.62,8.28299961]
[1743793360644,8.2242,121.64,121.62,0.05799961]
[1743793361345,8.27825872,121.65,121.62,0.05799961]
[1743793361943,8.2241,121.64,121.62,0.05799961]
[1743793362338,0.05465872,121.65,121.62,0.05799961]
[1743793362543,8.27845872,121.65,121.62,8.28329961]
[1743793364345,8.2241,121.64,121.62,8.28329961]
[1743793364539,8.2241,121.64,121.62,0.05799961]
[1743793364753,0.05465872,121.65,121.62,0.05799961]
[1743793365046,8.27835872,121.65,121.62,0.05799961]
[1743793365632,8.27835872,121.65,121.62,8.28329961]
[1743793365836,8.27835872,121.65,121.62,0.05799961]
[1743793366035,8.2241,121.64,121.62,0.05799961]
[1743793366332,0.05465872,121.65,121.62,0.05799961]
[1743793367063,0.05465872,121.65,121.62,17.09165328]
[1743793367255,0.05465872,121.65,121.64,8.2241]
[1743793367455,0.05465872,121.65,121.64,41.3441]